{"text_format":"1","workbook":"xlsx","n_sheets":10,"sheets":["ANA GİRİŞ","DATA","EK-16","İCMAL","SIRALAMA","KURA","EK 18","EK-17","BOŞ LİSTE","juri bireysel kontrol"],"not_rendered":{"charts":0,"images":23,"macros":1,"external_links":0,"defined_names":14,"comments":0,"pivot_tables":0},"unopened":[],"bounds":{"document_bytes":16777216,"sheet_cells":100000,"rows_first":2000,"rows_last":500,"rows_between":2000,"halvings":0,"cell_chars":16384,"cell_head_chars":4096},"cells_cut":0,"cells_raw":0,"read":"whole","date_system":"1900"}

{"sheet":"ANA GİRİŞ","index":0,"n_rows":0,"n_cols":0,"rows_kept":0,"cut":false,"hidden":false,"merged":[[0,0,2,1],[6,6,23,16],[0,16,2,17]]}

{"sheet":"DATA","index":1,"n_rows":19,"n_cols":13,"rows_kept":19,"cut":false,"hidden":false,"merged":[[0,2,0,12],[1,8,2,12],[4,9,5,9],[4,0,5,0],[4,1,5,1],[4,2,5,2],[4,3,4,4],[3,0,3,1],[2,3,2,4],[1,5,1,7],[1,3,1,4],[2,5,2,7],[1,0,1,1],[2,0,2,1]]}
[null,null,"\"GENÇ HATİPLER MİNBERDE\"  HUTBE OKUMA YARIŞMASI JURİ DEĞERLENDİRME PROGRAMI"]
["YARIŞMA ADI",null,"\"GENÇ HATİPLER\"  HUTBE OKUMA YARIŞMASI","YARIŞMAYI DÜZENLEYEN",null,"Din Öğretimi Genel Müdürlüğü",null,null,"AŞAĞIDAKİ BÖLÜME YARIŞMANIN TÜRÜNE GÖRE DEĞERLENDİRME KRİTERLERİNİ VE MAKSİMUM PUANLARINI GİRİNİZ."]
["YARIŞMA BÖLGESİ",null,"KONYA 1. Bölge İl Finali","Hutbe Dualarını Ezbere, Mahreç ve Telaffuza Dikkat Ederek  Doğru ve Güzel Okuma",null,15]
["Türkçe Metni Ezbere ve Doğru Okuma",null,15,"Türkçeyi Doğru, Güzel, Yerinde ve Etkili Kullanabilme (Vurgulama ve Tonlama, Diksiyon ve Telaffuz, Duraklama ve Akıcılık vb.)",20,"Özgüven, Minber Hâkimiyeti ve Dinleyenleri Etkileme",15,"Beden Dilini Doğru, Yerinde ve Etkili Kullanma\n(Jest, mimik, göz teması vb.)",15,"Temsil",10,"Zamanı Etkili Kullanma",10]
["KURA SONUCU","Öğrencinin Adı Soyadı","İl/İlçe/Okul","JURİ BAŞKANI",null,"ÜYE -1","ÜYE -2","ÜYE -3","ÜYE -4","GÖREVLİ ÖĞRETMEN"]
[null,null,null,"ADI SOYADI","ÜNVANI","ADI SOYADI","ADI SOYADI","ADI SOYADI","ADI SOYADI"]
[1,"KASIM KUYUCU","BOZKIR ANADOLU İMAM HATİP LİSESİ","ALİ EKİNCİ","Vaiz","DOÇ DR. ALİ ÇİFTÇİ ","HASAN BALCI","VELİ DİNÇ","YUNUS BİCEĞEZ","EKREM LAMCİ"]
[5,"YİĞİTER YAŞAR","ÇUMRA ANADOLU İMAM HATİP LİSESİ","ALİ EKİNCİ","Vaiz","DOÇ DR. ALİ ÇİFTÇİ ","HASAN BALCI","VELİ DİNÇ","YUNUS BİCEĞEZ","OSMAN GÜVEN"]
[10,"MUHAMMET TALHA KOR"," KARAPINAR ANADOLU İMAM HATİP LİSESİ","ALİ EKİNCİ","Vaiz","DOÇ DR. ALİ ÇİFTÇİ ","HASAN BALCI","VELİ DİNÇ","YUNUS BİCEĞEZ","GALİP NAVRUZ"]
[9,"CAFER KAYA","SEYDİŞEHİR ANADOLU İMAM HATİP LİSESİ","ALİ EKİNCİ","Vaiz","DOÇ DR. ALİ ÇİFTÇİ ","HASAN BALCI","VELİ DİNÇ","YUNUS BİCEĞEZ","İSA SELÇUK"]
[3,"SEDAT HEMEK","MAHMUT SAMİ RAMAZANOĞLU ANADOLU İMAM HATİP LİSESİ","ALİ EKİNCİ","Vaiz","DOÇ DR. ALİ ÇİFTÇİ ","HASAN BALCI","VELİ DİNÇ","YUNUS BİCEĞEZ","HALİL İBRAHİM YARAR"]
[12,"HABİB BİLAL ÇAKILCI","ÇUMRALIOĞLU VAKFI ANADOLU İMAM HATİP LİSESİ","ALİ EKİNCİ","Vaiz","DOÇ DR. ALİ ÇİFTÇİ ","HASAN BALCI","VELİ DİNÇ","YUNUS BİCEĞEZ","HAMZA AVCI"]
[8,"MURAT KABASAKAL","KARATAY SADREDDİN KONEVİ ANADOLU İMAM HATİP LİSESİ","ALİ EKİNCİ","Vaiz","DOÇ DR. ALİ ÇİFTÇİ ","HASAN BALCI","VELİ DİNÇ","YUNUS BİCEĞEZ","BAYRAM KARAGÜNLÜ"]
[4,"AHMET SAMİ ACAR","MEHMET AKİF ERSOY ANADOLU İMAM HATİP LİSESİ","ALİ EKİNCİ","Vaiz","DOÇ DR. ALİ ÇİFTÇİ ","HASAN BALCI","VELİ DİNÇ","YUNUS BİCEĞEZ","SEYİT BÜYÜKURĞAN"]
[6,"MEHMET YAPRAKCI","TAHİR BÜYÜKKÖRÜKÇÜ ANADOLU İMAM HATİP LİSESİ","ALİ EKİNCİ","Vaiz","DOÇ DR. ALİ ÇİFTÇİ ","HASAN BALCI","VELİ DİNÇ","YUNUS BİCEĞEZ","NUH DOĞAN"]
[13,"İBRAHİM ETHEM AYGÜN","KARATAY ALİ ULVİ KURUCU ANADOLU İMAM HATİP LİSESİ","ALİ EKİNCİ","Vaiz","DOÇ DR. ALİ ÇİFTÇİ ","HASAN BALCI","VELİ DİNÇ","YUNUS BİCEĞEZ","MUSTAFA BÜYÜKSERİN"]
[7,"MUHAMMED ALİ YÜCE","HACIVEYİSZADE ANADOLU İMAM HATİP LİSESİ","ALİ EKİNCİ","Vaiz","DOÇ DR. ALİ ÇİFTÇİ ","HASAN BALCI","VELİ DİNÇ","YUNUS BİCEĞEZ","ALİ OSMAN BALCI"]
[2,"YUSUF TAŞ","MUSTAFA BÜYÜKKAPLAN ANADOLU İMAM HATİP LİSESİ","ALİ EKİNCİ","Vaiz","DOÇ DR. ALİ ÇİFTÇİ ","HASAN BALCI","VELİ DİNÇ","YUNUS BİCEĞEZ","EBUBEKİR KARAKUŞ"]
[11,"RECEP İNGİT","MUSTAFA İLBOĞA ANADOLU İMAM HATİP LİSESİ","ALİ EKİNCİ","Vaiz","DOÇ DR. ALİ ÇİFTÇİ ","HASAN BALCI","VELİ DİNÇ","YUNUS BİCEĞEZ","SADIK BÜYÜKKELEŞ"]

{"sheet":"EK-16","index":2,"n_rows":105,"n_cols":16,"rows_kept":105,"cut":false,"hidden":false,"merged":[[0,0,0,7],[1,0,1,7],[2,0,2,7],[3,1,3,5],[4,1,4,5],[5,1,5,5],[13,6,13,7],[14,0,14,2],[14,3,14,5],[14,6,14,7],[15,0,15,7],[16,0,16,7],[6,1,6,5],[7,1,7,5],[8,1,8,5],[9,1,9,5],[11,1,11,2],[13,0,13,2],[13,3,13,5],[23,0,23,7],[24,1,24,5],[25,1,25,5],[26,1,26,5],[27,1,27,5],[28,1,28,5],[17,4,17,6],[18,4,18,6],[19,4,19,6],[20,4,20,6],[21,0,21,7],[22,0,22,7],[35,0,35,2],[35,3,35,5],[35,6,35,7],[36,0,36,7],[37,0,37,7],[38,4,38,6],[29,1,29,5],[30,1,30,5],[32,1,32,2],[34,0,34,2],[34,3,34,5],[34,6,34,7],[45,1,45,5],[46,1,46,5],[47,1,47,5],[48,1,48,5],[49,1,49,5],[50,1,50,5],[39,4,39,6],[40,4,40,6],[41,4,41,6],[42,0,42,7],[43,0,43,7],[44,0,44,7],[51,1,51,5],[53,1,53,2],[55,0,55,2],[55,3,55,5],[55,6,55,7],[56,0,56,2],[56,3,56,5],[56,6,56,7],[54,0,54,7],[63,0,63,7],[64,0,64,7],[65,0,65,7],[66,1,66,5],[67,1,67,5],[68,1,68,5],[57,0,57,7],[58,0,58,7],[59,4,59,6],[60,4,60,6],[61,4,61,6],[62,4,62,6],[76,6,76,7],[77,0,77,2],[77,3,77,5],[77,6,77,7],[78,0,78,7],[79,0,79,7],[69,1,69,5],[70,1,70,5],[71,1,71,5],[72,1,72,5],[74,1,74,2],[76,0,76,2],[76,3,76,5],[75,0,75,7],[87,1,87,5],[88,1,88,5],[89,1,89,5],[90,1,90,5],[91,1,91,5],[80,4,80,6],[81,4,81,6],[82,4,82,6],[83,4,83,6],[84,0,84,7],[85,0,85,7],[102,4,102,6],[103,4,103,6],[104,4,104,6],[10,1,10,5],[31,1,31,5],[52,1,52,5],[73,1,73,5],[94,1,94,5],[12,0,12,7],[33,0,33,7],[98,0,98,2],[98,3,98,5],[98,6,98,7],[99,0,99,7],[100,0,100,7],[101,4,101,6],[92,1,92,5],[93,1,93,5],[95,1,95,2],[97,0,97,2],[97,3,97,5],[97,6,97,7],[96,0,96,7],[86,0,86,7]]}
["Ek-16"]
[{"$f":"DATA!C2","v":"\"GENÇ HATİPLER\"  HUTBE OKUMA YARIŞMASI"}]
["Yarışmacı Değerlendirme Formu"]
["S.No","Ölçüt",null,null,null,null,"Puan Değeri","Verilen Puan"]
[1,{"$f":"DATA!D3","v":"Hutbe Dualarını Ezbere, Mahreç ve Telaffuza Dikkat Ederek  Doğru ve Güzel Okuma"},null,null,null,null,{"$f":"DATA!F3","v":15},null,null,null,null,null,null,null,null,1]
[2,{"$f":"DATA!A4","v":"Türkçe Metni Ezbere ve Doğru Okuma"},null,null,null,null,{"$f":"DATA!C4","v":15}]
[3,{"$f":"DATA!D4","v":"Türkçeyi Doğru, Güzel, Yerinde ve Etkili Kullanabilme (Vurgulama ve Tonlama, Diksiyon ve Telaffuz, Duraklama ve Akıcılık vb.)"},null,null,null,null,{"$f":"DATA!E4","v":20}]
[4,{"$f":"DATA!F4","v":"Özgüven, Minber Hâkimiyeti ve Dinleyenleri Etkileme"},null,null,null,null,{"$f":"DATA!G4","v":15}]
[5,{"$f":"DATA!H4","v":"Beden Dilini Doğru, Yerinde ve Etkili Kullanma\n(Jest, mimik, göz teması vb.)"},null,null,null,null,{"$f":"DATA!I4","v":15}]
[6,{"$f":"DATA!J4","v":"Temsil"},null,null,null,null,{"$f":"DATA!K4","v":10}]
[7,{"$f":"DATA!L4","v":"Zamanı Etkili Kullanma"},null,null,null,null,{"$f":"DATA!M4","v":10}]
[null,"Toplam",null,null,null,null,{"$f":"SUM(G5:G11)","v":100}]
["Her metin hatasından (kelimenin yanlış telaffuzu, kekeleme, takılma, unutma, gereksiz ve yersiz tekrar vs.) bir puan düşülür.\nVurguların yerli yerince yapılmaması, ses tonunun cami ve cemaatin durumuna göre kullanılmaması halinde “Türkçeyi Doğru, Güzel, Yerinde ve Etkili Kullanabilme” puanından bir puan düşülür.\nAbartılı jest ve mimikler kullanılması halinde bir puan; cemaatle göz teması yeterli ölçüde kurulamadığında bir puan, hiç kurulamadığında iki puan “Beden Dilini Doğru, Yerinde ve Etkili Kullanma” puanından düşülür.\n“Özgüven, Minber Hâkimiyeti ve Dinleyenleri Etkileme” hususlarının değerlendirmesi Seçici Kurul üyesinin takdirindedir."]
["Yarışmacının  Adı Soyadı",null,null,"Okulu",null,null,"Aldığı Toplam Puan"]
[{"$f":"VLOOKUP(P5,DATA!A:BF,2,FALSE)","v":"KASIM KUYUCU"},null,null,{"$error":"#N/A"}]
[]
[]
[null,null,null,null,{"$f":"VLOOKUP(P5,DATA!A:BI,4,FALSE)","v":"ALİ EKİNCİ"}]
[null,null,null,null,{"$f":"VLOOKUP(P5,DATA!A:BI,5,FALSE)","v":"Vaiz"}]
[null,null,null,null,"Seçici Kurul Başkanı"]
[null,null,null,null,"İmza",null,null,1]
["Ek-16"]
[{"$f":"A2","v":"\"GENÇ HATİPLER\"  HUTBE OKUMA YARIŞMASI"}]
["Yarışmacı Değerlendirme Formu"]
["S.No","Ölçüt",null,null,null,null,"Puan Değeri","Verilen Puan"]
[1,{"$f":"B5","v":"Hutbe Dualarını Ezbere, Mahreç ve Telaffuza Dikkat Ederek  Doğru ve Güzel Okuma"},null,null,null,null,{"$f":"G5","v":15},null,null,null,null,null,null,null,null,{"$f":"P5","v":1}]
[2,"Türkçe Metni Ezbere ve Doğru Okuma",null,null,null,null,{"$f":"G6","v":15}]
[3,"Türkçeyi Doğru, Güzel, Yerinde ve Etkili Kullanabilme (Vurgulama ve Tonlama, Diksiyon ve Telaffuz, Duraklama ve Akıcılık vb.)",null,null,null,null,20]
[4,"Özgüven, Minber Hâkimiyeti ve Dinleyenleri Etkileme",null,null,null,null,15]
[5,"Beden Dilini Doğru, Yerinde ve Etkili Kullanma\n(Jest, mimik, göz teması vb.)",null,null,null,null,15]
[6,"Temsil",null,null,null,null,10]
[7,"Zamanı Etkili Kullanma",null,null,null,null,10]
[null,"Toplam",null,null,null,null,{"$f":"SUM(G26:G32)","v":100}]
["Her metin hatasından (kelimenin yanlış telaffuzu, kekeleme, takılma, unutma, gereksiz ve yersiz tekrar vs.) bir puan düşülür.\nVurguların yerli yerince yapılmaması, ses tonunun cami ve cemaatin durumuna göre kullanılmaması halinde “Türkçeyi Doğru, Güzel, Yerinde ve Etkili Kullanabilme” puanından bir puan düşülür.\nAbartılı jest ve mimikler kullanılması halinde bir puan; cemaatle göz teması yeterli ölçüde kurulamadığında bir puan, hiç kurulamadığında iki puan “Beden Dilini Doğru, Yerinde ve Etkili Kullanma” puanından düşülür.\n“Özgüven, Minber Hâkimiyeti ve Dinleyenleri Etkileme” hususlarının değerlendirmesi Seçici Kurul üyesinin takdirindedir."]
["Yarışmacının  Adı Soyadı",null,null,"Okulu",null,null,"Aldığı Toplam Puan"]
[{"$f":"VLOOKUP(P26,DATA!A:BF,2,FALSE)","v":"KASIM KUYUCU"},null,null,{"$error":"#N/A"}]
[]
[]
[]
[null,null,null,null,{"$f":"VLOOKUP(P26,DATA!A:BI,6,FALSE)","v":"DOÇ DR. ALİ ÇİFTÇİ "}]
[null,null,null,null,"Seçici Kurul Üyesi"]
[null,null,null,null,"İmza",null,null,2]
["Ek-16"]
[{"$f":"A23","v":"\"GENÇ HATİPLER\"  HUTBE OKUMA YARIŞMASI"}]
["Yarışmacı Değerlendirme Formu"]
["S.No","Ölçüt",null,null,null,null,"Puan Değeri","Verilen Puan"]
[1,{"$f":"B26","v":"Hutbe Dualarını Ezbere, Mahreç ve Telaffuza Dikkat Ederek  Doğru ve Güzel Okuma"},null,null,null,null,{"$f":"G26","v":15},null,null,null,null,null,null,null,null,{"$f":"P5","v":1}]
[2,"Türkçe Metni Ezbere ve Doğru Okuma",null,null,null,null,{"$f":"G27","v":15}]
[3,"Türkçeyi Doğru, Güzel, Yerinde ve Etkili Kullanabilme (Vurgulama ve Tonlama, Diksiyon ve Telaffuz, Duraklama ve Akıcılık vb.)",null,null,null,null,20]
[4,"Özgüven, Minber Hâkimiyeti ve Dinleyenleri Etkileme",null,null,null,null,15]
[5,"Beden Dilini Doğru, Yerinde ve Etkili Kullanma\n(Jest, mimik, göz teması vb.)",null,null,null,null,15]
[6,"Temsil",null,null,null,null,10]
[7,"Zamanı Etkili Kullanma",null,null,null,null,10]
[null,"Toplam",null,null,null,null,100]
["Her metin hatasından (kelimenin yanlış telaffuzu, kekeleme, takılma, unutma, gereksiz ve yersiz tekrar vs.) bir puan düşülür.\nVurguların yerli yerince yapılmaması, ses tonunun cami ve cemaatin durumuna göre kullanılmaması halinde “Türkçeyi Doğru, Güzel, Yerinde ve Etkili Kullanabilme” puanından bir puan düşülür.\nAbartılı jest ve mimikler kullanılması halinde bir puan; cemaatle göz teması yeterli ölçüde kurulamadığında bir puan, hiç kurulamadığında iki puan “Beden Dilini Doğru, Yerinde ve Etkili Kullanma” puanından düşülür.\n“Özgüven, Minber Hâkimiyeti ve Dinleyenleri Etkileme” hususlarının değerlendirmesi Seçici Kurul üyesinin takdirindedir."]
["Yarışmacının  Adı Soyadı",null,null,"Okulu",null,null,"Aldığı Toplam Puan"]
[{"$f":"VLOOKUP(P47,DATA!A:BF,2,FALSE)","v":"KASIM KUYUCU"},null,null,{"$error":"#N/A"}]
[]
[]
[]
[null,null,null,null,{"$f":"VLOOKUP(P47,DATA!A:BI,7,FALSE)","v":"HASAN BALCI"}]
[null,null,null,null,"Seçici Kurul Üyesi"]
[null,null,null,null,"İmza",null,null,3]
["Ek-16"]
[{"$f":"A44","v":"\"GENÇ HATİPLER\"  HUTBE OKUMA YARIŞMASI"}]
["Yarışmacı Değerlendirme Formu"]
["S.No","Ölçüt",null,null,null,null,"Puan Değeri","Verilen Puan"]
[1,{"$f":"B47","v":"Hutbe Dualarını Ezbere, Mahreç ve Telaffuza Dikkat Ederek  Doğru ve Güzel Okuma"},null,null,null,null,{"$f":"G47","v":15},null,null,null,null,null,null,null,null,{"$f":"P5","v":1}]
[2,"Türkçe Metni Ezbere ve Doğru Okuma",null,null,null,null,{"$f":"G48","v":15}]
[3,"Türkçeyi Doğru, Güzel, Yerinde ve Etkili Kullanabilme (Vurgulama ve Tonlama, Diksiyon ve Telaffuz, Duraklama ve Akıcılık vb.)",null,null,null,null,20]
[4,"Özgüven, Minber Hâkimiyeti ve Dinleyenleri Etkileme",null,null,null,null,15]
[5,"Beden Dilini Doğru, Yerinde ve Etkili Kullanma\n(Jest, mimik, göz teması vb.)",null,null,null,null,15]
[6,"Temsil",null,null,null,null,10]
[7,"Zamanı Etkili Kullanma",null,null,null,null,10]
[null,"Toplam",null,null,null,null,{"$f":"SUM(G68:G74)","v":100}]
["Her metin hatasından (kelimenin yanlış telaffuzu, kekeleme, takılma, unutma, gereksiz ve yersiz tekrar vs.) bir puan düşülür.\nVurguların yerli yerince yapılmaması, ses tonunun cami ve cemaatin durumuna göre kullanılmaması halinde “Türkçeyi Doğru, Güzel, Yerinde ve Etkili Kullanabilme” puanından bir puan düşülür.\nAbartılı jest ve mimikler kullanılması halinde bir puan; cemaatle göz teması yeterli ölçüde kurulamadığında bir puan, hiç kurulamadığında iki puan “Beden Dilini Doğru, Yerinde ve Etkili Kullanma” puanından düşülür.\n“Özgüven, Minber Hâkimiyeti ve Dinleyenleri Etkileme” hususlarının değerlendirmesi Seçici Kurul üyesinin takdirindedir."]
["Yarışmacının  Adı Soyadı",null,null,"Okulu",null,null,"Aldığı Toplam Puan"]
[{"$f":"VLOOKUP(P68,DATA!A:BF,2,FALSE)","v":"KASIM KUYUCU"},null,null,{"$error":"#N/A"}]
[]
[]
[]
[null,null,null,null,{"$f":"VLOOKUP(P68,DATA!A:BI,8,FALSE)","v":"VELİ DİNÇ"}]
[null,null,null,null,"Seçici Kurul Üyesi"]
[null,null,null,null,"İmza",null,null,4]
["Ek-16"]
[{"$f":"A65","v":"\"GENÇ HATİPLER\"  HUTBE OKUMA YARIŞMASI"}]
["Yarışmacı Değerlendirme Formu"]
["S.No","Ölçüt",null,null,null,null,"Puan Değeri","Verilen Puan"]
[1,{"$f":"B68","v":"Hutbe Dualarını Ezbere, Mahreç ve Telaffuza Dikkat Ederek  Doğru ve Güzel Okuma"},null,null,null,null,{"$f":"G68","v":15},null,null,null,null,null,null,null,null,{"$f":"P5","v":1}]
[2,{"$f":"B69","v":"Türkçe Metni Ezbere ve Doğru Okuma"},null,null,null,null,{"$f":"G69","v":15}]
[3,"Türkçeyi Doğru, Güzel, Yerinde ve Etkili Kullanabilme (Vurgulama ve Tonlama, Diksiyon ve Telaffuz, Duraklama ve Akıcılık vb.)",null,null,null,null,20]
[4,"Özgüven, Minber Hâkimiyeti ve Dinleyenleri Etkileme",null,null,null,null,15]
[5,"Beden Dilini Doğru, Yerinde ve Etkili Kullanma\n(Jest, mimik, göz teması vb.)",null,null,null,null,15]
[6,"Temsil",null,null,null,null,10]
[7,"Zamanı Etkili Kullanma",null,null,null,null,10]
[null,"Toplam",null,null,null,null,{"$f":"SUM(G89:G95)","v":100}]
["Her metin hatasından (kelimenin yanlış telaffuzu, kekeleme, takılma, unutma, gereksiz ve yersiz tekrar vs.) bir puan düşülür.\nVurguların yerli yerince yapılmaması, ses tonunun cami ve cemaatin durumuna göre kullanılmaması halinde “Türkçeyi Doğru, Güzel, Yerinde ve Etkili Kullanabilme” puanından bir puan düşülür.\nAbartılı jest ve mimikler kullanılması halinde bir puan; cemaatle göz teması yeterli ölçüde kurulamadığında bir puan, hiç kurulamadığında iki puan “Beden Dilini Doğru, Yerinde ve Etkili Kullanma” puanından düşülür.\n“Özgüven, Minber Hâkimiyeti ve Dinleyenleri Etkileme” hususlarının değerlendirmesi Seçici Kurul üyesinin takdirindedir."]
["Yarışmacının  Adı Soyadı",null,null,"Okulu",null,null,"Aldığı Toplam Puan"]
[{"$f":"VLOOKUP(P89,DATA!A:BF,2,FALSE)","v":"KASIM KUYUCU"},null,null,{"$error":"#N/A"}]
[]
[]
[]
[null,null,null,null,{"$f":"VLOOKUP(P89,DATA!A:BI,9,FALSE)","v":"YUNUS BİCEĞEZ"}]
[null,null,null,null,"Seçici Kurul Üyesi"]
[null,null,null,null,"İmza",null,null,5]

{"sheet":"İCMAL","index":3,"n_rows":31,"n_cols":11,"rows_kept":31,"cut":false,"hidden":false,"merged":[[1,0,2,9],[26,0,26,1],[0,0,0,2],[30,4,30,7],[25,0,25,1],[25,3,25,4],[28,0,28,1],[28,3,28,4],[25,5,25,6],[28,5,28,6],[28,7,28,9],[25,7,25,9],[29,0,29,1],[29,3,29,4],[29,5,29,6]]}
[{"$f":"DATA!C3","v":"KONYA 1. Bölge İl Finali"}]
[{"$f":"DATA!F2&\" \"&DATA!C2 & \" DEĞERLENDİRME FORMU\"","v":"Din Öğretimi Genel Müdürlüğü \"GENÇ HATİPLER\"  HUTBE OKUMA YARIŞMASI DEĞERLENDİRME FORMU"}]
[]
["S.N.","Öğrencinin Adı Soyadı","İl/İlçe/Okul",{"$f":"DATA!D7","v":"ALİ EKİNCİ"},{"$f":"DATA!F7","v":"DOÇ DR. ALİ ÇİFTÇİ "},{"$f":"DATA!G7","v":"HASAN BALCI"},{"$f":"DATA!H7","v":"VELİ DİNÇ"},{"$f":"DATA!I7","v":"YUNUS BİCEĞEZ"},"Aritmetik Ortalaması ","Sıralama"]
[1,"AHMET SAMİ ACAR","MEHMET AKİF ERSOY ANADOLU İMAM HATİP LİSESİ",75,80,90,85,90,{"$f":"SUM(D5:H5)/(SUBTOTAL(3,D5:H5))","v":84},{"$f":"IF(I5=\"\",\"\",(RANK(I5,I$5:I$23)))","v":3},{"$f":"SUM(D5:H5)","v":420}]
[2,"CAFER KAYA","SEYDİŞEHİR ANADOLU İMAM HATİP LİSESİ",50,45,99,100,100,{"$f":"SUM(D6:H6)/(SUBTOTAL(3,D6:H6))","v":78.8},{"$f":"IF(I6=\"\",\"\",(RANK(I6,I$5:I$23)))","v":5},{"$f":"SUM(D6:H6)","v":394}]
[3,"HABİB BİLAL ÇAKILCI","KARATAY ÇUMRALIOĞLU VAKFI ANADOLU İMAM HATİP LİSESİ",100,100,100,100,100,100,1,500]
[4,"İBRAHİM ETHEM AYGÜN","KARATAY ALİ ULVİ KURUCU ANADOLU İMAM HATİP LİSESİ",50,50,50,50,50,50,8,250]
[5,"KASIM KUYUCU","BOZKIR ANADOLU İMAM HATİP LİSESİ",25,25,25,25,25,25,12,125]
[6,"MEHMET YAPRAKCI","TAHİR BÜYÜKKÖRÜKÇÜ ANADOLU İMAM HATİP LİSESİ",9,9,9,9,9,9,13,45]
[7,"MUHAMMED ALİ YÜCE","HACIVEYİSZADE ANADOLU İMAM HATİP LİSESİ",90,90,90,90,90,90,2,450]
[8,"MUHAMMET TALHA KOR","KARAPINAR ANADOLU İMAM HATİP LİSESİ",60,90,92,85,68,79,4,395]
[9,"MURAT KABASAKAL","KARATAY SADREDDİN KONEVİ ANADOLU İMAM HATİP LİSESİ",28,28,25,24,62,33.4,11,167]
[10,"RECEP İNGİT","MUSTAFA İLBOĞA ANADOLU İMAM HATİP LİSESİ",55,65,44,66,77,61.4,6,307]
[11,"SEDAT HEMEK","MAHMUT SAMİ RAMAZANOĞLU ANADOLU İMAM HATİP LİSESİ",44,33,22,55,66,44,10,220]
[12,"YİĞİTER YAŞAR","ÇUMRA ANADOLU İMAM HATİP LİSESİ",33,22,52,52,62,44.2,9,221]
[13,"YUSUF TAŞ","MUSTAFA BÜYÜKKAPLAN ANADOLU İMAM HATİP LİSESİ",45,62,52,52,52,52.6,7,263]
[14]
[15]
[16]
[17]
[18]
[19,null,null,null,null,null,null,null,null,null,0]
[null,null,null,null,null,null,null,null,null,null,0]
[null,null,null,null,null,null,null,null,null,null,0]
["KOMİSYON BAŞKANI",null,"ÜYE-1","ÜYE-2",null,"ÜYE-3",null,"ÜYE-4",null,null,0]
[{"$f":"TODAY()","v":"2023-04-19"},null,null,null,null,null,null,null,null,null,0]
[null,null,null,null,null,null,null,null,null,null,0]
[{"$f":"DATA!D7","v":"ALİ EKİNCİ"},null,{"$f":"DATA!F7","v":"DOÇ DR. ALİ ÇİFTÇİ "},{"$f":"DATA!G7","v":"HASAN BALCI"},null,{"$f":"DATA!H7","v":"VELİ DİNÇ"},null,{"$f":"DATA!I7","v":"YUNUS BİCEĞEZ"}]
[{"$f":"DATA!E7","v":"Vaiz"},null,"N.E.U. AKİF ÖĞRETİM ÜYESİ","İHL Meslek Dersleri Öğretmeni",null,"İHL Meslek Dersleri Öğretmeni",null,null,"DKAB Öğretmeni",null,0]
[null,null,null,null,null,null,null,null,null,null,0]

{"sheet":"SIRALAMA","index":4,"n_rows":43,"n_cols":23,"rows_kept":43,"cut":false,"hidden":false,"merged":[[0,0,0,2],[32,0,32,1],[32,3,32,4],[32,6,32,7],[1,0,2,9],[25,0,25,1],[26,0,26,1],[30,4,30,7],[28,0,28,1],[28,3,28,4],[28,5,28,6],[28,7,28,9],[29,0,29,1],[29,3,29,4],[29,5,29,6]]}
[{"$f":"DATA!C3","v":"KONYA 1. Bölge İl Finali"}]
[{"$f":"DATA!F2&\" \"&DATA!C2 & \" DEĞERLENDİRME FORMU\"","v":"Din Öğretimi Genel Müdürlüğü \"GENÇ HATİPLER\"  HUTBE OKUMA YARIŞMASI DEĞERLENDİRME FORMU"}]
[]
["S.N.","Öğrencinin Adı Soyadı","İl/İlçe/Okul","Başkan ","1. Üye ","2. Üye ","3. Üye","4. Üye","Aritmetik Ortalaması ","Sıralama"]
[1,"İBRAHİM ETHEM AYGÜN","KARATAY ALİ ULVİ KURUCU ANADOLU İMAM HATİP LİSESİ",100,100,100,100,100,100,1,{"$error":"#DIV/0!"}]
[2,"YUSUF TAŞ","MUSTAFA BÜYÜKKAPLAN ANADOLU İMAM HATİP LİSESİ",90,90,90,90,90,90,2,{"$error":"#DIV/0!"}]
[3,"HABİB BİLAL ÇAKILCI","KARATAY ÇUMRALIOĞLU VAKFI ANADOLU İMAM HATİP LİSESİ",75,80,90,85,90,84,3,{"$error":"#DIV/0!"}]
[4,"CAFER KAYA","SEYDİŞEHİR ANADOLU İMAM HATİP LİSESİ",60,90,92,85,68,79,4,{"$error":"#DIV/0!"}]
[5,"SEDAT HEMEK","MAHMUT SAMİ RAMAZANOĞLU ANADOLU İMAM HATİP LİSESİ",50,45,99,100,100,78.8,5,{"$error":"#DIV/0!"}]
[6,"YİĞİTER YAŞAR","ÇUMRA ANADOLU İMAM HATİP LİSESİ",55,65,44,66,77,61.4,6,{"$error":"#DIV/0!"}]
[7,"MEHMET YAPRAKCI","TAHİR BÜYÜKKÖRÜKÇÜ ANADOLU İMAM HATİP LİSESİ",45,62,52,52,52,52.6,7,{"$error":"#DIV/0!"}]
[8,"MUHAMMED ALİ YÜCE","HACIVEYİSZADE ANADOLU İMAM HATİP LİSESİ",50,50,50,50,50,50,8,{"$error":"#DIV/0!"}]
[9,"MURAT KABASAKAL","KARATAY SADREDDİN KONEVİ ANADOLU İMAM HATİP LİSESİ",33,22,52,52,62,44.2,9]
[10,"AHMET SAMİ ACAR","MEHMET AKİF ERSOY ANADOLU İMAM HATİP LİSESİ",44,33,22,55,66,44,10]
[11,"RECEP İNGİT","MUSTAFA İLBOĞA ANADOLU İMAM HATİP LİSESİ",28,28,25,24,62,33.4,11]
[12,"KASIM KUYUCU","BOZKIR ANADOLU İMAM HATİP LİSESİ",25,25,25,25,25,25,12]
[13,"MUHAMMET TALHA KOR","KARAPINAR ANADOLU İMAM HATİP LİSESİ",9,9,9,9,9,9,13]
[14]
[15]
[16]
[17]
[18]
[19]
[20]
[20]
[]
[{"$f":"TODAY()","v":"2023-04-19"},null,null,null,null,null,null,null,null,null,{"$f":"SUM(D27:H27)","v":0}]
[null,null,null,null,null,null,null,null,null,null,0]
[{"$f":"DATA!D7","v":"ALİ EKİNCİ"},null,{"$f":"DATA!F7","v":"DOÇ DR. ALİ ÇİFTÇİ "},{"$f":"DATA!G7","v":"HASAN BALCI"},null,{"$f":"DATA!H7","v":"VELİ DİNÇ"},null,{"$f":"DATA!I7","v":"YUNUS BİCEĞEZ"}]
[{"$f":"DATA!E7","v":"Vaiz"},null,"N.E.U. AKİF ÖĞRETİM ÜYESİ","İHL Meslek Dersleri Öğretmeni",null,"İHL Meslek Dersleri Öğretmeni",null,null,"DKAB Öğretmeni",null,0]
[null,null,null,null,null,null,null,null,null,null,0]
[]
[null,null,null,null,null,null,null,null,null,null,{"$f":"SUM(D33:H33)","v":0}]
[]
[null,null,null,null,null,null,null,null,null,null,null,null,null,null,null,null,null,null,null,null,null,null,""]
[null,null,null,null,null,null,null,null,null,null,null,null,null,null,null,null,null,null,null,null,null,null,""]
[null,null,null,null,null,null,null,null,null,null,null,null,null,null,null,null,null,null,null,null,null,null,""]
[null,null,null,null,null,null,null,null,null,null,null,null,null,null,null,null,null,null,null,null,null,null,""]
[null,null,null,null,null,null,null,null,null,null,null,null,null,null,null,null,null,null,null,null,null,null,""]
[null,null,null,null,null,null,null,null,null,null,null,null,null,null,null,null,null,null,null,null,null,null,""]
[null,null,null,null,null,null,null,null,null,null,null,null,null,null,null,null,null,null,null,null,null,null,""]
[null,null,null,null,null,null,null,null,null,null,null,null,null,null,null,null,null,null,null,null,null,null,""]
[null,null,null,null,null,null,null,null,null,null,null,null,null,null,null,null,null,null,null,null,null,null,""]

{"sheet":"KURA","index":5,"n_rows":139,"n_cols":16,"rows_kept":139,"cut":false,"hidden":false,"merged":[[136,0,136,18],[49,0,49,3],[49,5,49,8],[49,10,49,13],[49,15,49,18],[50,0,50,3],[50,5,50,8],[50,10,50,13],[50,15,50,18],[122,0,122,10],[122,13,122,18],[123,0,123,18],[112,0,112,10],[112,13,112,18],[113,0,113,18],[114,0,114,10],[114,13,114,18],[115,0,115,18],[116,0,116,10],[116,13,116,18],[117,0,117,18],[118,0,118,10],[118,13,118,18],[119,0,119,18],[22,1,22,9],[22,10,22,12],[104,0,104,18],[105,0,105,10],[105,13,105,18],[106,0,106,18],[134,0,134,18],[135,0,135,10],[135,13,135,18],[75,0,75,10],[75,13,75,18],[76,0,76,18],[130,0,130,10],[130,13,130,18],[131,0,131,18],[124,0,124,10],[124,13,124,18],[125,0,125,18],[126,0,126,10],[126,13,126,18],[127,0,127,18],[128,0,128,10],[128,13,128,18],[129,0,129,18],[120,0,120,10],[120,13,120,18],[121,0,121,18],[110,0,110,18],[103,0,103,10],[103,13,103,18],[107,0,107,18],[108,0,108,10],[108,13,108,18],[109,0,109,18],[92,0,92,10],[92,13,92,18],[93,0,93,18],[94,0,94,10],[94,13,94,18],[95,0,95,18],[96,0,96,10],[96,13,96,18],[102,0,102,18],[97,0,97,18],[98,0,98,10],[98,13,98,18],[99,0,99,18],[100,0,100,10],[100,13,100,18],[101,0,101,18],[86,0,86,10],[86,13,86,18],[87,0,87,18],[88,0,88,10],[88,13,88,18],[89,0,89,18],[90,0,90,10],[90,13,90,18],[91,0,91,18],[83,0,83,18],[84,0,84,10],[84,13,84,18],[85,0,85,18],[80,0,80,18],[71,0,71,10],[53,13,53,18],[55,13,55,18],[57,13,57,18],[59,13,59,18],[61,13,61,18],[63,13,63,18],[65,13,65,18],[71,13,71,18],[70,0,70,18],[79,0,79,18],[72,0,72,18],[73,0,73,10],[73,13,73,18],[77,0,77,18],[78,0,78,10],[78,13,78,18],[74,0,74,18],[0,0,1,18],[3,1,5,17],[6,1,7,17],[53,0,53,10],[35,0,35,3],[35,5,35,8],[35,10,35,13],[34,0,34,3],[34,5,34,8],[34,10,34,13],[34,15,34,18],[15,10,15,12],[16,10,16,12],[17,10,17,12],[18,10,18,12],[19,10,19,12],[19,1,19,9],[9,1,9,9],[15,1,15,9],[16,1,16,9],[17,1,17,9],[18,1,18,9],[10,1,10,9],[11,1,11,9],[12,1,12,9],[13,1,13,9],[14,1,14,9],[10,10,10,12],[11,10,11,12],[12,10,12,12],[13,10,13,12],[14,10,14,12],[35,15,35,18],[29,1,29,6],[29,8,29,12],[29,14,29,18],[30,1,30,6],[30,8,30,12],[30,14,30,18],[20,1,20,9],[20,10,20,12],[21,1,21,9],[21,10,21,12],[25,1,25,6],[25,8,25,12],[25,14,25,18],[26,1,26,6],[26,8,26,12],[26,14,26,18],[67,13,67,18],[60,0,60,18],[62,0,62,18],[64,0,64,18],[57,0,57,10],[59,0,59,10],[66,0,66,18],[40,15,40,18],[44,0,44,3],[44,10,44,13],[40,0,40,3],[40,5,40,8],[40,10,40,13],[61,0,61,10],[55,0,55,10],[54,0,54,18],[63,0,63,10],[44,5,44,8],[45,5,45,8],[132,0,132,18],[133,0,133,10],[133,13,133,18],[137,0,137,18],[138,0,138,10],[138,13,138,18],[139,0,139,18],[39,0,39,3],[39,5,39,8],[39,10,39,13],[39,15,39,18],[56,0,56,18],[58,0,58,18],[67,0,67,10],[69,0,69,10],[65,0,65,10],[69,13,69,18],[68,0,68,18],[45,0,45,3],[45,10,45,13],[44,15,44,18],[45,15,45,18],[82,0,82,10],[82,13,82,18]]}
[{"$f":"DATA!F2&\" \"&DATA!C2 & \" Kura Tutanağı\"","v":"Din Öğretimi Genel Müdürlüğü \"GENÇ HATİPLER\"  HUTBE OKUMA YARIŞMASI Kura Tutanağı"}]
[]
[]
[null,"\"Genç Hatipler\" Hutbe Okuma Yarışması Konya 1. bölge finali için Konya Anadolu İmam Hatip Lisesinin koordinesinde  Konya Anadolu İmam Hatip Lisesinde  30.12.2021 Perşembe günü çekilen  kura sonucunda öğrencilerin hutbe okuma yarışma sırası aşağıdaki gibi gerçekleşmiştir. "]
[]
[]
[null,"       Bu tutanak tarafımızdan hazırlanarak imza altına alınmıştır. 30.12.2021"]
[]
[]
["S.N.","YARIŞMACI ÖĞRENCİNİN ADI SOYADI",null,null,null,null,null,null,null,null,null,"KUR'A SONUCU"]
[1,{"$f":"DATA!B7","v":"KASIM KUYUCU"},"Ahmet GÖÇMENOĞLU","Ahmet GÖÇMENOĞLU","Ahmet GÖÇMENOĞLU","Ahmet GÖÇMENOĞLU","Ahmet GÖÇMENOĞLU","Ahmet GÖÇMENOĞLU","Ahmet GÖÇMENOĞLU","Ahmet GÖÇMENOĞLU",{"$f":"DATA!A7","v":1}]
[2,{"$f":"DATA!B8","v":"YİĞİTER YAŞAR"},"Ahmet GÖÇMENOĞLU","Ahmet GÖÇMENOĞLU","Ahmet GÖÇMENOĞLU","Ahmet GÖÇMENOĞLU","Ahmet GÖÇMENOĞLU","Ahmet GÖÇMENOĞLU","Ahmet GÖÇMENOĞLU","Ahmet GÖÇMENOĞLU",{"$f":"DATA!A8","v":5}]
[3,{"$f":"DATA!B9","v":"MUHAMMET TALHA KOR"},"Ahmet GÖÇMENOĞLU","Ahmet GÖÇMENOĞLU","Ahmet GÖÇMENOĞLU","Ahmet GÖÇMENOĞLU","Ahmet GÖÇMENOĞLU","Ahmet GÖÇMENOĞLU","Ahmet GÖÇMENOĞLU","Ahmet GÖÇMENOĞLU",{"$f":"DATA!A9","v":10}]
[4,{"$f":"DATA!B10","v":"CAFER KAYA"},"Ahmet GÖÇMENOĞLU","Ahmet GÖÇMENOĞLU","Ahmet GÖÇMENOĞLU","Ahmet GÖÇMENOĞLU","Ahmet GÖÇMENOĞLU","Ahmet GÖÇMENOĞLU","Ahmet GÖÇMENOĞLU","Ahmet GÖÇMENOĞLU",{"$f":"DATA!A10","v":9}]
[5,{"$f":"DATA!B11","v":"SEDAT HEMEK"},"Ahmet GÖÇMENOĞLU","Ahmet GÖÇMENOĞLU","Ahmet GÖÇMENOĞLU","Ahmet GÖÇMENOĞLU","Ahmet GÖÇMENOĞLU","Ahmet GÖÇMENOĞLU","Ahmet GÖÇMENOĞLU","Ahmet GÖÇMENOĞLU",{"$f":"DATA!A11","v":3}]
[6,{"$f":"DATA!B12","v":"HABİB BİLAL ÇAKILCI"},"Ahmet GÖÇMENOĞLU","Ahmet GÖÇMENOĞLU","Ahmet GÖÇMENOĞLU","Ahmet GÖÇMENOĞLU","Ahmet GÖÇMENOĞLU","Ahmet GÖÇMENOĞLU","Ahmet GÖÇMENOĞLU","Ahmet GÖÇMENOĞLU",{"$f":"DATA!A12","v":12}]
[7,{"$f":"DATA!B13","v":"MURAT KABASAKAL"},"Ahmet GÖÇMENOĞLU","Ahmet GÖÇMENOĞLU","Ahmet GÖÇMENOĞLU","Ahmet GÖÇMENOĞLU","Ahmet GÖÇMENOĞLU","Ahmet GÖÇMENOĞLU","Ahmet GÖÇMENOĞLU","Ahmet GÖÇMENOĞLU",{"$f":"DATA!A13","v":8}]
[8,{"$f":"DATA!B14","v":"AHMET SAMİ ACAR"},"Ahmet GÖÇMENOĞLU","Ahmet GÖÇMENOĞLU","Ahmet GÖÇMENOĞLU","Ahmet GÖÇMENOĞLU","Ahmet GÖÇMENOĞLU","Ahmet GÖÇMENOĞLU","Ahmet GÖÇMENOĞLU","Ahmet GÖÇMENOĞLU",{"$f":"DATA!A14","v":4}]
[9,{"$f":"DATA!B15","v":"MEHMET YAPRAKCI"},"Ahmet GÖÇMENOĞLU","Ahmet GÖÇMENOĞLU","Ahmet GÖÇMENOĞLU","Ahmet GÖÇMENOĞLU","Ahmet GÖÇMENOĞLU","Ahmet GÖÇMENOĞLU","Ahmet GÖÇMENOĞLU","Ahmet GÖÇMENOĞLU",{"$f":"DATA!A15","v":6}]
[10,{"$f":"DATA!B16","v":"İBRAHİM ETHEM AYGÜN"},"Ahmet GÖÇMENOĞLU","Ahmet GÖÇMENOĞLU","Ahmet GÖÇMENOĞLU","Ahmet GÖÇMENOĞLU","Ahmet GÖÇMENOĞLU","Ahmet GÖÇMENOĞLU","Ahmet GÖÇMENOĞLU","Ahmet GÖÇMENOĞLU",{"$f":"DATA!A16","v":13}]
[11,{"$f":"DATA!B17","v":"MUHAMMED ALİ YÜCE"},"Ahmet GÖÇMENOĞLU","Ahmet GÖÇMENOĞLU","Ahmet GÖÇMENOĞLU","Ahmet GÖÇMENOĞLU","Ahmet GÖÇMENOĞLU","Ahmet GÖÇMENOĞLU","Ahmet GÖÇMENOĞLU","Ahmet GÖÇMENOĞLU",{"$f":"DATA!A17","v":7}]
[12,{"$f":"DATA!B18","v":"YUSUF TAŞ"},"Ahmet GÖÇMENOĞLU","Ahmet GÖÇMENOĞLU","Ahmet GÖÇMENOĞLU","Ahmet GÖÇMENOĞLU","Ahmet GÖÇMENOĞLU","Ahmet GÖÇMENOĞLU","Ahmet GÖÇMENOĞLU","Ahmet GÖÇMENOĞLU",{"$f":"DATA!A18","v":2}]
[13,{"$f":"DATA!B19","v":"RECEP İNGİT"},"Ahmet GÖÇMENOĞLU","Ahmet GÖÇMENOĞLU","Ahmet GÖÇMENOĞLU","Ahmet GÖÇMENOĞLU","Ahmet GÖÇMENOĞLU","Ahmet GÖÇMENOĞLU","Ahmet GÖÇMENOĞLU","Ahmet GÖÇMENOĞLU",{"$f":"DATA!A19","v":11}]
[]
[]
[null,{"$f":"DATA!D7","v":"ALİ EKİNCİ"},null,null,null,null,null,null,{"$f":"DATA!F7","v":"DOÇ DR. ALİ ÇİFTÇİ "},null,null,null,null,null,{"$f":"DATA!G7","v":"HASAN BALCI"}]
[null,{"$f":"DATA!E7","v":"Vaiz"},null,null,null,null,null,null,{"$f":"İCMAL!C30","v":"N.E.U. AKİF ÖĞRETİM ÜYESİ"},null,null,null,null,null,{"$f":"İCMAL!C30","v":"N.E.U. AKİF ÖĞRETİM ÜYESİ"}]
[]
[]
[null,{"$f":"DATA!I7","v":"YUNUS BİCEĞEZ"},null,null,null,null,null,null,null,null,null,null,null,null,{"$f":"DATA!H7","v":"VELİ DİNÇ"}]
[null,{"$f":"İCMAL!I30","v":"DKAB Öğretmeni"},null,null,null,null,null,null,null,null,null,null,null,null,{"$f":"İCMAL!F30","v":"İHL Meslek Dersleri Öğretmeni"}]
[]
[]
[]
[{"$f":"DATA!J7","v":"EKREM LAMCİ"},null,null,null,null,{"$f":"DATA!J8","v":"OSMAN GÜVEN"},null,null,null,null,{"$f":"DATA!J9","v":"GALİP NAVRUZ"},null,null,null,null,{"$f":"DATA!J10","v":"İSA SELÇUK"}]
[{"$f":"DATA!C7","v":"BOZKIR ANADOLU İMAM HATİP LİSESİ"},null,null,null,null,{"$f":"DATA!C8","v":"ÇUMRA ANADOLU İMAM HATİP LİSESİ"},null,null,null,null,{"$f":"DATA!C9","v":" KARAPINAR ANADOLU İMAM HATİP LİSESİ"},null,null,null,null,{"$f":"DATA!C10","v":"SEYDİŞEHİR ANADOLU İMAM HATİP LİSESİ"}]
[]
[]
[]
[{"$f":"DATA!J11","v":"HALİL İBRAHİM YARAR"},null,null,null,null,{"$f":"DATA!J12","v":"HAMZA AVCI"},null,null,null,null,{"$f":"DATA!J13","v":"BAYRAM KARAGÜNLÜ"},null,null,null,null,{"$f":"DATA!J14","v":"SEYİT BÜYÜKURĞAN"}]
[{"$f":"DATA!C11","v":"MAHMUT SAMİ RAMAZANOĞLU ANADOLU İMAM HATİP LİSESİ"},null,null,null,null,{"$f":"DATA!C12","v":"ÇUMRALIOĞLU VAKFI ANADOLU İMAM HATİP LİSESİ"},null,null,null,null,{"$f":"DATA!C13","v":"KARATAY SADREDDİN KONEVİ ANADOLU İMAM HATİP LİSESİ"},null,null,null,null,{"$f":"DATA!C14","v":"MEHMET AKİF ERSOY ANADOLU İMAM HATİP LİSESİ"}]
[]
[]
[]
[{"$f":"DATA!J15","v":"NUH DOĞAN"},null,null,null,null,{"$f":"DATA!J17","v":"ALİ OSMAN BALCI"},null,null,null,null,{"$f":"DATA!J18","v":"EBUBEKİR KARAKUŞ"},null,null,null,null,{"$f":"DATA!J16","v":"MUSTAFA BÜYÜKSERİN"}]
[{"$f":"DATA!C15","v":"TAHİR BÜYÜKKÖRÜKÇÜ ANADOLU İMAM HATİP LİSESİ"},null,null,null,null,{"$f":"DATA!C17","v":"HACIVEYİSZADE ANADOLU İMAM HATİP LİSESİ"},null,null,null,null,{"$f":"DATA!C18","v":"MUSTAFA BÜYÜKKAPLAN ANADOLU İMAM HATİP LİSESİ"},null,null,null,null,{"$f":"DATA!C16","v":"KARATAY ALİ ULVİ KURUCU ANADOLU İMAM HATİP LİSESİ"}]
[]
[]
[]
[null,null,null,null,null,{"$f":"DATA!J19","v":"SADIK BÜYÜKKELEŞ"}]
[null,null,null,null,null,{"$f":"DATA!C19","v":"MUSTAFA İLBOĞA ANADOLU İMAM HATİP LİSESİ"}]
[]
[]
[{"$f":"DATA!C7","v":"BOZKIR ANADOLU İMAM HATİP LİSESİ"},null,null,null,null,null,null,null,null,null,null,null,null,{"$f":"DATA!A7","v":1}]
[]
[{"$f":"DATA!C8","v":"ÇUMRA ANADOLU İMAM HATİP LİSESİ"},null,null,null,null,null,null,null,null,null,null,null,null,{"$f":"DATA!A8","v":5}]
[]
[{"$f":"DATA!C9","v":" KARAPINAR ANADOLU İMAM HATİP LİSESİ"},null,null,null,null,null,null,null,null,null,null,null,null,{"$f":"DATA!A9","v":10}]
[]
[{"$f":"DATA!C10","v":"SEYDİŞEHİR ANADOLU İMAM HATİP LİSESİ"},null,null,null,null,null,null,null,null,null,null,null,null,{"$f":"DATA!A10","v":9}]
[]
[{"$f":"DATA!C11","v":"MAHMUT SAMİ RAMAZANOĞLU ANADOLU İMAM HATİP LİSESİ"},null,null,null,null,null,null,null,null,null,null,null,null,{"$f":"DATA!A11","v":3}]
[]
[{"$f":"DATA!C12","v":"ÇUMRALIOĞLU VAKFI ANADOLU İMAM HATİP LİSESİ"},null,null,null,null,null,null,null,null,null,null,null,null,{"$f":"DATA!A12","v":12}]
[]
[{"$f":"DATA!C13","v":"KARATAY SADREDDİN KONEVİ ANADOLU İMAM HATİP LİSESİ"},null,null,null,null,null,null,null,null,null,null,null,null,{"$f":"DATA!A13","v":8}]
[]
[{"$f":"DATA!C14","v":"MEHMET AKİF ERSOY ANADOLU İMAM HATİP LİSESİ"},null,null,null,null,null,null,null,null,null,null,null,null,{"$f":"DATA!A14","v":4}]
[]
[{"$f":"DATA!C15","v":"TAHİR BÜYÜKKÖRÜKÇÜ ANADOLU İMAM HATİP LİSESİ"},null,null,null,null,null,null,null,null,null,null,null,null,{"$f":"DATA!A15","v":6}]
[]
[{"$f":"DATA!C16","v":"KARATAY ALİ ULVİ KURUCU ANADOLU İMAM HATİP LİSESİ"},null,null,null,null,null,null,null,null,null,null,null,null,{"$f":"DATA!A16","v":13}]
[]
[{"$f":"DATA!C17","v":"HACIVEYİSZADE ANADOLU İMAM HATİP LİSESİ"},null,null,null,null,null,null,null,null,null,null,null,null,{"$f":"DATA!A17","v":7}]
[]
[{"$f":"DATA!C18","v":"MUSTAFA BÜYÜKKAPLAN ANADOLU İMAM HATİP LİSESİ"},null,null,null,null,null,null,null,null,null,null,null,null,{"$f":"DATA!A18","v":2}]
[]
[]
[{"$f":"DATA!C19","v":"MUSTAFA İLBOĞA ANADOLU İMAM HATİP LİSESİ"},null,null,null,null,null,null,null,null,null,null,null,null,{"$f":"DATA!A19","v":11}]
[]
["YARIŞMACI ÖĞRENCİLER"]
[]
[{"$f":"DATA!B7","v":"KASIM KUYUCU"}]
[]
[{"$f":"DATA!B8","v":"YİĞİTER YAŞAR"}]
[]
[{"$f":"DATA!B9","v":"MUHAMMET TALHA KOR"}]
[]
[{"$f":"DATA!B10","v":"CAFER KAYA"}]
[]
[{"$f":"DATA!B11","v":"SEDAT HEMEK"}]
[]
[{"$f":"DATA!B12","v":"HABİB BİLAL ÇAKILCI"}]
[]
[{"$f":"DATA!B13","v":"MURAT KABASAKAL"}]
[]
[{"$f":"DATA!B14","v":"AHMET SAMİ ACAR"}]
[]
[{"$f":"DATA!B15","v":"MEHMET YAPRAKCI"}]
[]
[{"$f":"DATA!B16","v":"İBRAHİM ETHEM AYGÜN"}]
[]
[]
[{"$f":"DATA!B17","v":"MUHAMMED ALİ YÜCE"}]
[]
[{"$f":"DATA!B18","v":"YUSUF TAŞ"}]
[]
[]
[{"$f":"DATA!B19","v":"RECEP İNGİT"}]
[]
["GÖREVLİ ÖĞRETMENLER"]
[]
[{"$f":"DATA!J7","v":"EKREM LAMCİ"}]
[]
[{"$f":"DATA!J9","v":"GALİP NAVRUZ"}]
[]
[{"$f":"DATA!J8","v":"OSMAN GÜVEN"}]
[]
[{"$f":"DATA!J10","v":"İSA SELÇUK"}]
[]
[{"$f":"DATA!J11","v":"HALİL İBRAHİM YARAR"}]
[]
[{"$f":"DATA!J12","v":"HAMZA AVCI"}]
[]
[{"$f":"DATA!J13","v":"BAYRAM KARAGÜNLÜ"}]
[]
[{"$f":"DATA!J14","v":"SEYİT BÜYÜKURĞAN"}]
[]
[{"$f":"DATA!J15","v":"NUH DOĞAN"}]
[]
[{"$f":"DATA!J16","v":"MUSTAFA BÜYÜKSERİN"}]
[]
[]
[{"$f":"DATA!J17","v":"ALİ OSMAN BALCI"}]
[]
[{"$f":"DATA!J18","v":"EBUBEKİR KARAKUŞ"}]
[]
[]
[{"$f":"DATA!J19","v":"SADIK BÜYÜKKELEŞ"}]

{"sheet":"EK 18","index":6,"n_rows":32,"n_cols":20,"rows_kept":32,"cut":false,"hidden":false,"merged":[[31,0,31,3],[31,4,31,8],[31,9,31,12],[31,13,31,16],[31,17,31,19],[29,0,29,3],[29,4,29,8],[29,9,29,12],[29,13,29,16],[29,17,29,19],[30,0,30,3],[30,4,30,8],[30,9,30,12],[30,13,30,16],[30,17,30,19],[25,1,25,9],[25,10,25,18],[26,0,26,19],[27,0,27,19],[28,0,28,3],[28,4,28,8],[28,9,28,12],[28,13,28,16],[28,17,28,19],[24,1,24,9],[24,10,24,18],[18,1,18,9],[18,10,18,18],[19,1,19,9],[19,10,19,18],[20,1,20,9],[20,10,20,18],[21,10,21,18],[22,1,22,9],[22,10,22,18],[23,1,23,9],[23,10,23,18],[15,1,15,9],[15,10,15,18],[16,1,16,9],[16,10,16,18],[17,1,17,9],[17,10,17,18],[12,1,12,9],[12,10,12,18],[13,1,13,9],[13,10,13,18],[14,1,14,9],[14,10,14,18],[9,1,9,9],[9,10,9,18],[10,1,10,9],[10,10,10,18],[11,1,11,9],[11,10,11,18],[8,1,8,9],[8,10,8,18],[0,0,0,19],[1,0,1,19],[2,0,2,19],[3,0,3,19],[4,0,4,9],[4,10,4,19],[5,0,5,9],[5,10,5,19],[6,0,6,19],[7,1,7,9],[7,10,7,18]]}
[]
["Ek-18"]
["Öğrenci Değerlendirme Formu"]
[]
["Yarışmanın Adı",null,null,null,null,null,null,null,null,null,{"$f":"DATA!C2","v":"\"GENÇ HATİPLER\"  HUTBE OKUMA YARIŞMASI"}]
["Yarışmanın Kategorisi\nİl Finali",null,null,null,null,null,null,null,null,null,"7. BÖLGE FİNALİ \n08 MART 2019 CUMA"]
["Öğrencinin"]
["Sıra No","Adı Soyadı",null,null,null,null,null,null,null,null,"Okulu",null,null,null,null,null,null,null,null,"Toplam   Puanı"]
[1,{"$f":"SIRALAMA!B5","v":"İBRAHİM ETHEM AYGÜN"},null,null,null,null,null,null,null,null,{"$f":"SIRALAMA!C5","v":"KARATAY ALİ ULVİ KURUCU ANADOLU İMAM HATİP LİSESİ"},null,null,null,null,null,null,null,null,{"$f":"SIRALAMA!I5","v":100}]
[2,{"$f":"SIRALAMA!B6","v":"YUSUF TAŞ"},null,null,null,null,null,null,null,null,{"$f":"SIRALAMA!C6","v":"MUSTAFA BÜYÜKKAPLAN ANADOLU İMAM HATİP LİSESİ"},null,null,null,null,null,null,null,null,{"$f":"SIRALAMA!I6","v":90}]
[3,{"$f":"SIRALAMA!B7","v":"HABİB BİLAL ÇAKILCI"},null,null,null,null,null,null,null,null,{"$f":"SIRALAMA!C7","v":"KARATAY ÇUMRALIOĞLU VAKFI ANADOLU İMAM HATİP LİSESİ"},null,null,null,null,null,null,null,null,{"$f":"SIRALAMA!I7","v":84}]
[4,{"$f":"SIRALAMA!B8","v":"CAFER KAYA"},null,null,null,null,null,null,null,null,{"$f":"SIRALAMA!C8","v":"SEYDİŞEHİR ANADOLU İMAM HATİP LİSESİ"},null,null,null,null,null,null,null,null,{"$f":"SIRALAMA!I8","v":79}]
[5,{"$f":"SIRALAMA!B9","v":"SEDAT HEMEK"},null,null,null,null,null,null,null,null,{"$f":"SIRALAMA!C9","v":"MAHMUT SAMİ RAMAZANOĞLU ANADOLU İMAM HATİP LİSESİ"},null,null,null,null,null,null,null,null,{"$f":"SIRALAMA!I9","v":78.8}]
[6,{"$f":"SIRALAMA!B10","v":"YİĞİTER YAŞAR"},null,null,null,null,null,null,null,null,{"$f":"SIRALAMA!C10","v":"ÇUMRA ANADOLU İMAM HATİP LİSESİ"},null,null,null,null,null,null,null,null,{"$f":"SIRALAMA!I10","v":61.4}]
[7,{"$f":"SIRALAMA!B11","v":"MEHMET YAPRAKCI"},null,null,null,null,null,null,null,null,{"$f":"SIRALAMA!C11","v":"TAHİR BÜYÜKKÖRÜKÇÜ ANADOLU İMAM HATİP LİSESİ"},null,null,null,null,null,null,null,null,{"$f":"SIRALAMA!I11","v":52.6}]
[8,{"$f":"SIRALAMA!B12","v":"MUHAMMED ALİ YÜCE"},null,null,null,null,null,null,null,null,{"$f":"SIRALAMA!C12","v":"HACIVEYİSZADE ANADOLU İMAM HATİP LİSESİ"},null,null,null,null,null,null,null,null,{"$f":"SIRALAMA!I12","v":50}]
[9,{"$f":"SIRALAMA!B13","v":"MURAT KABASAKAL"},null,null,null,null,null,null,null,null,{"$f":"SIRALAMA!C13","v":"KARATAY SADREDDİN KONEVİ ANADOLU İMAM HATİP LİSESİ"},null,null,null,null,null,null,null,null,{"$f":"SIRALAMA!I13","v":44.2}]
[10,{"$f":"SIRALAMA!B14","v":"AHMET SAMİ ACAR"},null,null,null,null,null,null,null,null,{"$f":"SIRALAMA!C14","v":"MEHMET AKİF ERSOY ANADOLU İMAM HATİP LİSESİ"},null,null,null,null,null,null,null,null,{"$f":"SIRALAMA!I14","v":44}]
[11,{"$f":"SIRALAMA!B15","v":"RECEP İNGİT"},null,null,null,null,null,null,null,null,{"$f":"SIRALAMA!C15","v":"MUSTAFA İLBOĞA ANADOLU İMAM HATİP LİSESİ"},null,null,null,null,null,null,null,null,{"$f":"SIRALAMA!I15","v":33.4}]
[12,{"$f":"SIRALAMA!B16","v":"KASIM KUYUCU"},null,null,null,null,null,null,null,null,{"$f":"SIRALAMA!C16","v":"BOZKIR ANADOLU İMAM HATİP LİSESİ"},null,null,null,null,null,null,null,null,{"$f":"SIRALAMA!I16","v":25}]
[13,{"$f":"SIRALAMA!B17","v":"MUHAMMET TALHA KOR"},null,null,null,null,null,null,null,null,{"$f":"SIRALAMA!C17","v":"KARAPINAR ANADOLU İMAM HATİP LİSESİ"},null,null,null,null,null,null,null,null,{"$f":"SIRALAMA!I17","v":9}]
[]
["Yarışma Derecesi","Adı Soyadı",null,null,null,null,null,null,null,null,"Okulu",null,null,null,null,null,null,null,null,"Puanı"]
["Birinci",{"$f":"B9","v":"İBRAHİM ETHEM AYGÜN"},null,null,null,null,null,null,null,null,{"$f":"K9","v":"KARATAY ALİ ULVİ KURUCU ANADOLU İMAM HATİP LİSESİ"},null,null,null,null,null,null,null,null,{"$f":"T9","v":100}]
["İkinci",{"$f":"B10","v":"YUSUF TAŞ"},null,null,null,null,null,null,null,null,{"$f":"K10","v":"MUSTAFA BÜYÜKKAPLAN ANADOLU İMAM HATİP LİSESİ"},null,null,null,null,null,null,null,null,{"$f":"T10","v":90}]
["Üçüncü","HABİB BİLAL ÇAKILCI",null,null,null,null,null,null,null,null,"KARATAY ÇUMRALIOĞLU VAKFI ANADOLU İMAM HATİP LİSESİ",null,null,null,null,null,null,null,null,84]
[]
["Seçici Kurul Üyeleri"]
["İmza",null,null,null,"İmza",null,null,null,null,"İmza",null,null,null,"İmza",null,null,null,"İmza"]
["BAŞKAN",null,null,null,"ÜYE",null,null,null,null,"ÜYE",null,null,null,"ÜYE",null,null,null,"ÜYE"]
[{"$f":"DATA!L16","v":0},null,null,null,{"$f":"DATA!F16","v":"DOÇ DR. ALİ ÇİFTÇİ "},null,null,null,null,{"$f":"DATA!G16","v":"HASAN BALCI"},null,null,null,{"$f":"DATA!H16","v":"VELİ DİNÇ"},null,null,null,{"$f":"DATA!I16","v":"YUNUS BİCEĞEZ"}]
[{"$f":"DATA!E7","v":"Vaiz"},null,null,null,{"$f":"İCMAL!C30","v":"N.E.U. AKİF ÖĞRETİM ÜYESİ"},null,null,null,null,{"$f":"İCMAL!D30","v":"İHL Meslek Dersleri Öğretmeni"},null,null,null,{"$f":"İCMAL!F30","v":"İHL Meslek Dersleri Öğretmeni"},null,null,null,{"$f":"İCMAL!I30","v":"DKAB Öğretmeni"}]

{"sheet":"EK-17","index":7,"n_rows":17,"n_cols":7,"rows_kept":17,"cut":false,"hidden":false,"merged":[[16,0,16,2],[6,0,7,0],[6,2,6,3],[7,2,7,3],[8,0,8,3],[9,1,9,2],[10,1,10,2],[11,1,11,2],[12,1,12,2],[13,1,13,2],[14,1,14,2],[15,0,15,2],[0,0,0,3],[1,0,1,3],[2,0,2,3],[3,0,3,3],[4,0,5,0],[4,2,4,3],[5,2,5,3]]}
["Ek-17"]
[{"$f":"DATA!C2","v":"\"GENÇ HATİPLER\"  HUTBE OKUMA YARIŞMASI"}]
["Seçici Kurul Toplam Puanlama Formu"]
["A) Yarışma Bilgileri"]
["Yarışmacının","Adı Soyadı",{"$f":"VLOOKUP('EK-17'!G6,İCMAL!A:J,2,FALSE)","v":"RECEP İNGİT"}]
[null,"Okulu",{"$f":"VLOOKUP('EK-17'!G6,İCMAL!A:J,3,FALSE)","v":"MUSTAFA İLBOĞA ANADOLU İMAM HATİP LİSESİ"},null,null,null,10]
["Yarışmanın","Yapıldığı yer                        (Cami/Salon)","Konya  / Hacıveyiszade Camii"]
[null,"Yapıldığı kategori                                                          (Okul, İlçe, İl içi bölge, il ve bölge)",{"$f":"DATA!C3","v":"KONYA 1. Bölge İl Finali"}]
["B) Seçici Kurul Yarışmacı Değerlendirme Formu"]
["S.No","Seçici Kurul Üyesinin Adı Soyadı",null,"Verdiği Puan"]
[1,{"$f":"DATA!D7","v":"ALİ EKİNCİ"},null,{"$f":"VLOOKUP(G6,İCMAL!A:J,4,FALSE)","v":55}]
[2,{"$f":"DATA!F7","v":"DOÇ DR. ALİ ÇİFTÇİ "},null,{"$f":"VLOOKUP(G6,İCMAL!A:J,5,FALSE)","v":65}]
[3,{"$f":"DATA!G7","v":"HASAN BALCI"},null,{"$f":"VLOOKUP(G6,İCMAL!A:J,6,FALSE)","v":44}]
[4,{"$f":"DATA!H7","v":"VELİ DİNÇ"},null,{"$f":"VLOOKUP(G6,İCMAL!A:J,7,FALSE)","v":66}]
[5,{"$f":"DATA!I7","v":"YUNUS BİCEĞEZ"},null,{"$f":"VLOOKUP(G6,İCMAL!A:J,8,FALSE)","v":77}]
["Seçici kurul üyelerinin verdikleri puanların toplamı",null,null,{"$f":"VLOOKUP(G6,İCMAL!A:L,11,FALSE)","v":307}]
["Toplam aritmetik puan",null,null,{"$f":"VLOOKUP(G6,İCMAL!A:L,9,FALSE)","v":61.4}]

{"sheet":"BOŞ LİSTE","index":8,"n_rows":32,"n_cols":11,"rows_kept":32,"cut":false,"hidden":false,"merged":[[0,0,0,2],[1,0,2,9],[26,0,26,1],[26,3,26,4],[26,5,26,6],[26,7,26,9],[31,4,31,7],[27,0,27,1],[29,0,29,1],[29,3,29,4],[29,5,29,6],[29,7,29,9],[30,0,30,1],[30,3,30,4],[30,5,30,6],[30,7,30,9]]}
[{"$f":"DATA!C3","v":"KONYA 1. Bölge İl Finali"}]
[{"$f":"DATA!F2&\" \"&DATA!C2 & \" Değerlendirme Formu\"","v":"Din Öğretimi Genel Müdürlüğü \"GENÇ HATİPLER\"  HUTBE OKUMA YARIŞMASI Değerlendirme Formu"}]
[]
["S.N.","Öğrencinin Adı Soyadı","İl/İlçe/Okul",{"$f":"DATA!D7","v":"ALİ EKİNCİ"},{"$f":"DATA!F7","v":"DOÇ DR. ALİ ÇİFTÇİ "},{"$f":"DATA!G7","v":"HASAN BALCI"},{"$f":"DATA!H7","v":"VELİ DİNÇ"},{"$f":"DATA!I7","v":"YUNUS BİCEĞEZ"},"Aritmetik Ortalaması ","Sıralama"]
[1,{"$f":"DATA!B7","v":"KASIM KUYUCU"},{"$f":"DATA!C7","v":"BOZKIR ANADOLU İMAM HATİP LİSESİ"},null,null,null,null,null,null,null,{"$f":"SUM(D5:H5)","v":0}]
[2,{"$f":"DATA!B8","v":"YİĞİTER YAŞAR"},{"$f":"DATA!C8","v":"ÇUMRA ANADOLU İMAM HATİP LİSESİ"},null,null,null,null,null,null,null,{"$f":"SUM(D6:H6)","v":0}]
[3,{"$f":"DATA!B9","v":"MUHAMMET TALHA KOR"},{"$f":"DATA!C9","v":" KARAPINAR ANADOLU İMAM HATİP LİSESİ"},null,null,null,null,null,null,null,0]
[4,{"$f":"DATA!B10","v":"CAFER KAYA"},{"$f":"DATA!C10","v":"SEYDİŞEHİR ANADOLU İMAM HATİP LİSESİ"},null,null,null,null,null,null,null,0]
[5,{"$f":"DATA!B11","v":"SEDAT HEMEK"},{"$f":"DATA!C11","v":"MAHMUT SAMİ RAMAZANOĞLU ANADOLU İMAM HATİP LİSESİ"},null,null,null,null,null,null,null,0]
[6,{"$f":"DATA!B12","v":"HABİB BİLAL ÇAKILCI"},{"$f":"DATA!C12","v":"ÇUMRALIOĞLU VAKFI ANADOLU İMAM HATİP LİSESİ"},null,null,null,null,null,null,null,0]
[7,{"$f":"DATA!B13","v":"MURAT KABASAKAL"},{"$f":"DATA!C13","v":"KARATAY SADREDDİN KONEVİ ANADOLU İMAM HATİP LİSESİ"},null,null,null,null,null,null,null,0]
[8,{"$f":"DATA!B14","v":"AHMET SAMİ ACAR"},{"$f":"DATA!C14","v":"MEHMET AKİF ERSOY ANADOLU İMAM HATİP LİSESİ"},null,null,null,null,null,null,null,0]
[9,{"$f":"DATA!B15","v":"MEHMET YAPRAKCI"},{"$f":"DATA!C15","v":"TAHİR BÜYÜKKÖRÜKÇÜ ANADOLU İMAM HATİP LİSESİ"},null,null,null,null,null,null,null,0]
[10,{"$f":"DATA!B16","v":"İBRAHİM ETHEM AYGÜN"},{"$f":"DATA!C16","v":"KARATAY ALİ ULVİ KURUCU ANADOLU İMAM HATİP LİSESİ"},null,null,null,null,null,null,null,0]
[11,{"$f":"DATA!B17","v":"MUHAMMED ALİ YÜCE"},{"$f":"DATA!C17","v":"HACIVEYİSZADE ANADOLU İMAM HATİP LİSESİ"},null,null,null,null,null,null,null,0]
[12,{"$f":"DATA!B18","v":"YUSUF TAŞ"},{"$f":"DATA!C18","v":"MUSTAFA BÜYÜKKAPLAN ANADOLU İMAM HATİP LİSESİ"},null,null,null,null,null,null,null,0]
[13,{"$f":"DATA!B19","v":"RECEP İNGİT"},{"$f":"DATA!C19","v":"MUSTAFA İLBOĞA ANADOLU İMAM HATİP LİSESİ"},null,null,null,null,null,null,null,0]
[14,null,null,null,null,null,null,null,null,null,0]
[15,null,null,null,null,null,null,null,null,null,0]
[16,null,null,null,null,null,null,null,null,null,0]
[17,null,null,null,null,null,null,null,null,{"$f":"IF(I21=\"\",\"\",(RANK(I21,I$5:I$24)))","v":""},0]
[18,null,null,null,null,null,null,null,null,"",0]
[19,null,null,null,null,null,null,null,null,"",0]
[null,null,null,null,null,null,null,null,null,"",0]
[null,null,null,null,null,null,null,null,null,null,0]
[null,null,null,null,null,null,null,null,null,null,0]
["KOMİSYON BAŞKANI",null,"ÜYE-1","ÜYE-2",null,"ÜYE-3",null,"ÜYE-4",null,null,0]
[{"$f":"TODAY()","v":"2023-04-19"},null,null,null,null,null,null,null,null,null,0]
[null,null,null,null,null,null,null,null,null,null,0]
[{"$f":"DATA!D7","v":"ALİ EKİNCİ"},null,{"$f":"DATA!F7","v":"DOÇ DR. ALİ ÇİFTÇİ "},{"$f":"DATA!G7","v":"HASAN BALCI"},null,{"$f":"DATA!H7","v":"VELİ DİNÇ"},null,{"$f":"DATA!I7","v":"YUNUS BİCEĞEZ"},null,null,0]
[{"$f":"DATA!E7","v":"Vaiz"},null,{"$f":"İCMAL!C30","v":"N.E.U. AKİF ÖĞRETİM ÜYESİ"},{"$f":"İCMAL!D30","v":"İHL Meslek Dersleri Öğretmeni"},null,{"$f":"İCMAL!F30","v":"İHL Meslek Dersleri Öğretmeni"},null,{"$f":"İCMAL!I30","v":"DKAB Öğretmeni"},null,null,0]
[null,null,null,null,null,null,null,null,null,null,0]

{"sheet":"juri bireysel kontrol","index":9,"n_rows":24,"n_cols":12,"rows_kept":24,"cut":false,"hidden":false,"merged":[[23,7,23,9],[22,0,22,1],[22,6,22,7],[0,0,0,2],[1,0,2,10],[3,0,4,0],[3,1,4,1],[3,10,4,10]]}
[{"$f":"DATA!C3","v":"KONYA 1. Bölge İl Finali"}]
[{"$f":"DATA!F2&\" \"&DATA!C2 & \" Bireysel Değerlendirme Formu\"","v":"Din Öğretimi Genel Müdürlüğü \"GENÇ HATİPLER\"  HUTBE OKUMA YARIŞMASI Bireysel Değerlendirme Formu"}]
[]
["S.N.","Öğrencinin Adı Soyadı",{"$f":"DATA!D3","v":"Hutbe Dualarını Ezbere, Mahreç ve Telaffuza Dikkat Ederek  Doğru ve Güzel Okuma"},{"$f":"DATA!A4","v":"Türkçe Metni Ezbere ve Doğru Okuma"},{"$f":"DATA!D4","v":"Türkçeyi Doğru, Güzel, Yerinde ve Etkili Kullanabilme (Vurgulama ve Tonlama, Diksiyon ve Telaffuz, Duraklama ve Akıcılık vb.)"},{"$f":"DATA!F4","v":"Özgüven, Minber Hâkimiyeti ve Dinleyenleri Etkileme"},{"$f":"DATA!H4","v":"Beden Dilini Doğru, Yerinde ve Etkili Kullanma\n(Jest, mimik, göz teması vb.)"},{"$f":"DATA!J4","v":"Temsil"},{"$f":"DATA!L4","v":"Zamanı Etkili Kullanma"},"TOPLAM PUAN","Sıralama"]
[null,null,15,15,20,15,15,10,10,100]
[1,{"$f":"İCMAL!B5","v":"AHMET SAMİ ACAR"},null,null,null,null,null,null,null,null,null,{"$f":"SUM(G6:J6)","v":0}]
[2,{"$f":"İCMAL!B6","v":"CAFER KAYA"},null,null,null,null,null,null,null,null,null,0]
[3,{"$f":"İCMAL!B7","v":"HABİB BİLAL ÇAKILCI"},null,null,null,null,null,null,null,null,null,0]
[4,{"$f":"İCMAL!B8","v":"İBRAHİM ETHEM AYGÜN"},null,null,null,null,null,null,null,null,null,0]
[5,{"$f":"İCMAL!B9","v":"KASIM KUYUCU"},null,null,null,null,null,null,null,null,null,0]
[6,{"$f":"İCMAL!B10","v":"MEHMET YAPRAKCI"},null,null,null,null,null,null,null,null,null,0]
[7,{"$f":"İCMAL!B11","v":"MUHAMMED ALİ YÜCE"},null,null,null,null,null,null,null,null,null,0]
[8,{"$f":"İCMAL!B12","v":"MUHAMMET TALHA KOR"},null,null,null,null,null,null,null,null,null,0]
[9,{"$f":"İCMAL!B13","v":"MURAT KABASAKAL"},null,null,null,null,null,null,null,null,null,0]
[10,{"$f":"İCMAL!B14","v":"RECEP İNGİT"},null,null,null,null,null,null,null,null,null,0]
[11,{"$f":"İCMAL!B15","v":"SEDAT HEMEK"},null,null,null,null,null,null,null,null,null,0]
[12,{"$f":"İCMAL!B16","v":"YİĞİTER YAŞAR"},null,null,null,null,null,null,null,null,null,0]
[13,{"$f":"İCMAL!B17","v":"YUSUF TAŞ"},null,null,null,null,null,null,null,null,null,0]
[14,null,null,null,null,null,null,null,null,null,null,0]
[15,null,null,null,null,null,null,null,null,null,null,0]
[16,null,null,null,null,null,null,null,null,null,null,0]
[null,null,null,null,null,null,null,null,null,null,null,0]
[null,null,null,null,null,null,null,null,null,null,null,0]
[null,null,null,null,null,null,null,null,null,null,null,0]